Cogmind - Beta 11.2 @@@ ROGUE MODE // 2022.12.31 @ 22:48:19 // Winter2022/Polymind Player: CrossedViper Result: Destroyed by S-43 Plague with Heavy Machine Gun Performance ------------- Evolutions (7) 3500 Regions Visited (33) 6600 Robots Destroyed (300) 1500 Value Destroyed (11517) 11517 Prototype IDs (218) 4360 Alien Tech Used (0) 0 Bonus (27239) 27239 TOTAL SCORE: 54256 Bonus ------- Polymind Skill 17060 High Alert Combat Kills 1529 Follower Combat Kills 3090 Met Data Miner 300 Used Data Conduit 3000 Met Imprinter 300 Met Zhirov 300 Met Warlord at Base 500 MAIN.C Attacked Warlord 500 Warlord Defense Kills 1370 Met R17 at Cetus 500 Met R17 at Research 2000 Friendly Fire -3210 Cogmind --------- Core Integrity 0/1300 Matter 0/0 Energy 12/100 System Corruption 6% Temperature Cool (0) Movement Core (50) Location -3/Armory Parts ------- > --- POWER (1) -------- (None) > --- PROPULSION (3) --- (None) > --- UTILITY (0) ------ (None) > --- WEAPON (1) ------- (None) > --- INVENTORY (0) ---- (None) Peak State ------------ > --- POWER ------------ Micro Antimatter Reactor Compact Particle Reactor > --- PROPULSION ------- Antigrav Array Antigrav Array > --- UTILITY ---------- Advanced Cooling System Advanced Cooling System Advanced Energy Well Advanced Gravity Neutralizer Improved Phase Shifter Improved Core Shielding Improved Weapon Shielding Medium Regenerative Plating Remote Force Field Advanced Hacking Suite Advanced System Shield > --- WEAPON ----------- Tesla Rifle Tesla Rifle > --- INVENTORY -------- (None) [Rating: 129] Favorites ----------- Power Antimatter Reactor Engine Heavy Deuterium Engine Power Core Reinforced Fission Core Reactor Antimatter Reactor Propulsion Combat Antigrav System Treads Heavy Treads Leg Enhanced Biometal Leg Hover Unit Combat Antigrav System Flight Unit VTOL Module Utility EX Chip 1 Device Improved Cooling System Storage Experimental Matter Compressor Processor Advanced Launcher Guidance Computer Hackware EX Chip 1 Protection Heavy Reactive Plating Weapon 99-TNT's Nukerbomber Energy Gun Tesla Rifle Energy Cannon Nova Cannon Ballistic Gun Helical Railgun Ballistic Cannon Heavy Autocannon Launcher 99-TNT's Nukerbomber Special Weapon Flamer Impact Weapon Compactor Build | -11 -10 -10 -10 -9 -8 -8 -7 -7 -7 -7 -7 -7 -6 -6 -6 -6 -6 -6 -6 -5 -5 -5 -5 -5 -5 -4 -4 -4 -4 -4 -3 -3 -3 ------- Run | Scr Mat Min Exi Min Mat Sto Fac Was Fac Low Low Zio Pro Fac Was Fac Low Low Dat Pro Fac Ext Cet Arc Hub Fac Was Fac Upp War Pro Res Arm Slots Evolved . | . . . . . . . . . . . . . . . . . . . . . . . . . . . . . . . . . . Power . | . . . . . . . . . . . . . . . . . . . . . . . . . . . . . . . . . . Propulsion . | . . . . . . . . . . . . . . . . . . . . . . . . . . . . . . . . . . Utility . | . . . . . . . . . . . . . . . . . . . . . . . . . . . . . . . . . . Weapon . | . . . . . . . . . . . . . . . . . . . . . . . . . . . . . . . . . . Parts Attached . | . . . . . . . . . . . . . . . . . . . . . . . . . . . . . . . . . . Power . | . . . . . . . . . . . . . . . . . . . . . . . . . . . . . . . . . . Engine . | . . . . . . . . . . . . . . . . . . . . . . . . . . . . . . . . . . Core . | . . . . . . . . . . . . . . . . . . . . . . . . . . . . . . . . . . Reactor . | . . . . . . . . . . . . . . . . . . . . . . . . . . . . . . . . . . Propulsion . | . . . . . . . . . . . . . . . . . . . . . . . . . . . . . . . . . . Treads . | . . . . . . . . . . . . . . . . . . . . . . . . . . . . . . . . . . Leg . | . . . . . . . . . . . . . . . . . . . . . . . . . . . . . . . . . . Wheel . | . . . . . . . . . . . . . . . . . . . . . . . . . . . . . . . . . . Hover . | . . . . . . . . . . . . . . . . . . . . . . . . . . . . . . . . . . Flight . | . . . . . . . . . . . . . . . . . . . . . . . . . . . . . . . . . . Utility . | . . . . . . . . . . . . . . . . . . . . . . . . . . . . . . . . . . Device . | . . . . . . . . . . . . . . . . . . . . . . . . . . . . . . . . . . Storage . | . . . . . . . . . . . . . . . . . . . . . . . . . . . . . . . . . . Processor . | . . . . . . . . . . . . . . . . . . . . . . . . . . . . . . . . . . Hackware . | . . . . . . . . . . . . . . . . . . . . . . . . . . . . . . . . . . Protection . | . . . . . . . . . . . . . . . . . . . . . . . . . . . . . . . . . . Artifact . | . . . . . . . . . . . . . . . . . . . . . . . . . . . . . . . . . . Weapon . | . . . . . . . . . . . . . . . . . . . . . . . . . . . . . . . . . . Energy Gun . | . . . . . . . . . . . . . . . . . . . . . . . . . . . . . . . . . . Energy Cannon . | . . . . . . . . . . . . . . . . . . . . . . . . . . . . . . . . . . Ballistic Gun . | . . . . . . . . . . . . . . . . . . . . . . . . . . . . . . . . . . Ballistic Cannon . | . . . . . . . . . . . . . . . . . . . . . . . . . . . . . . . . . . Launcher . | . . . . . . . . . . . . . . . . . . . . . . . . . . . . . . . . . . Special Weapon . | . . . . . . . . . . . . . . . . . . . . . . . . . . . . . . . . . . Impact Weapon . | . . . . . . . . . . . . . . . . . . . . . . . . . . . . . . . . . . Slashing Weapon . | . . . . . . . . . . . . . . . . . . . . . . . . . . . . . . . . . . Piercing Weapon . | . . . . . . . . . . . . . . . . . . . . . . . . . . . . . . . . . . Special Melee Weapon . | . . . . . . . . . . . . . . . . . . . . . . . . . . . . . . . . . . Unidentified Prototypes . | . . . . . . . . . . . . . . . . . . . . . . . . . . . . . . . . . . Parts Lost 40 | . 1 . . . . 2 3 . 2 3 1 3 . 1 . . . . . . . 1 1 . . . . . 2 2 4 7 7 Power 4 | . . . . . . . 1 . . 1 . 1 . . . . . . . . . . . . . . . . . . 1 . . Propulsion 5 | . . . . . . . . . . . . 1 . . . . . . . . . . . . . . . . . . . 2 2 Utility 22 | . 1 . . . . 2 1 . 2 1 1 . . 1 . . . . . . . 1 1 . . . . . 2 2 2 2 3 Weapon 9 | . . . . . . . 1 . . 1 . 1 . . . . . . . . . . . . . . . . . . 1 3 2 Highest Loss Streak 3 | . 1 . . . . 1 2 . 1 2 1 3 . 1 . . . . . . . 1 1 . . . . . 2 1 3 3 3 To Critical Strikes 1 | . . . . . . . . . . . . . . . . . . . . . . . 1 . . . . . . . . . . Average Slot Usage (%) 70 | . 89 72 43 96 96 90 96 33 46 65 93 18 86 80 73 73 73 73 73 73 73 71 60 95 99 85 89 89 86 80 81 80 87 Engine 1 | . 14 11 1 3 3 3 . . . 1 12 4 . . . . . . . . . . . . . . . . . . . . . Reactor 5 | . . . . . . . . 3 9 4 . . 6 6 6 6 6 6 6 6 6 6 6 10 10 10 10 10 10 5 4 8 10 Treads 3 | . . . . . . . . 3 9 7 25 . . . . . . . . . . . . . . . . . . 12 . 3 6 Leg 2 | . . . . . . . 28 6 . . . 4 . . . . . . . . . . . 12 20 3 . . . . 16 15 13 Hover 7 | . 28 23 1 3 3 3 . . . . . . 20 16 13 13 13 13 13 13 13 13 13 4 . 8 10 10 10 4 . . . Device 14 | . 4 . . . . . 14 7 13 9 18 . 20 20 20 20 20 20 20 20 20 18 7 28 30 24 26 26 24 18 12 16 14 Storage 2 | . . . . . . . . . . . . . 6 6 6 6 6 6 6 6 6 6 6 2 . 4 5 5 5 2 . 3 2 Processor 9 | . 14 11 6 15 15 15 4 . . 1 12 2 13 13 13 13 13 13 13 13 13 13 13 6 10 1 . . . 5 34 12 6 Hackware 4 | . . . 31 69 69 63 17 . . . . . . . . . . . . . . . . 4 . 8 10 10 10 4 . . . Protection 6 | . 14 11 . . . . . 4 10 1 . . 13 11 6 6 6 6 6 6 6 6 6 12 9 12 15 15 13 11 . 4 5 Energy Gun 2 | . . . 1 3 3 3 14 3 . . . 4 . . . . . . . . . . . 4 . 8 10 10 10 4 . 11 8 Ballistic Gun 2 | . . . . . . . . . . 11 17 . . . . . . . . . . . . . . . . . . . 12 3 17 Launcher 2 | . 14 11 . . . . . . . . . . 6 6 6 6 6 6 6 6 6 6 6 . . . . . . . . . . Naked Turns 754 | . . 42 59 . . . . 31 . 2 1 600 . . . . . . . . . . . 2 . 1 . . . 1 . 11 4 Heaviest Build 150 | 12 12 9 21 21 21 21 21 150 150 103 18 85 85 85 84 84 84 84 84 84 84 84 83 60 60 59 59 59 59 81 35 47 47 Greatest Support 150 | 24 24 24 21 21 21 21 21 150 150 150 43 88 88 88 72 72 72 72 72 72 72 72 72 68 60 68 68 68 68 81 60 60 56 Greatest Overweight (x) 1 | . . . . . . . . . . . . . . 1 1 1 1 1 1 1 1 1 1 . . . . . . . . . . Average Overweight (x) . | . . . . . . . . . . . . . . . 1 1 1 1 1 1 1 1 . . . . . . . . . . . Largest Inventory Capacity 1 | 1 1 1 1 1 1 1 1 1 1 1 1 1 1 1 1 1 1 1 1 1 1 1 1 1 1 1 1 1 1 1 1 1 1 Average Capacity . | . 1 . . 1 1 1 1 . 1 . . . 1 1 1 1 1 1 1 1 1 1 1 . 1 . 1 1 1 . 1 . . Most Carried 1 | . . . 1 1 1 1 1 1 1 . . . . 1 1 1 1 1 1 1 1 1 1 . . . . . . 1 1 1 . Average Carried . | . . . . 1 1 1 . . . . . . . . 1 1 1 1 1 1 1 1 1 . . . . . . . . . . Final Capacity 1 | 1 1 . 1 1 1 1 1 1 1 1 1 1 1 1 1 1 1 1 1 1 1 1 . 1 1 1 1 1 1 1 1 1 . Final Carried 1 | . . . 1 1 1 1 1 . . . . . . 1 1 1 1 1 1 1 1 1 . . . . . . . . 1 . . Class Distribution -------------------- 39% | Demolisher 18% | Compactor 8% | A7 6% | Executioner 5% | Tinkerer 5% | Cogmind 4% | Mutant 3% | Sentry Dominant Class ---------------- Demolisher | -10/Materials Demolisher | -10/Mines Cogmind | -10/Exiles Tinkerer | -9/Mines Tinkerer | -8/Materials Tinkerer | -8/Storage Grunt | -7/Factory Cogmind | -7/Waste Compactor | -7/Factory Compactor | -7/Lower Caves Mutant | -7/Lower Caves Cogmind | -7/Zion Demolisher | -6/Proximity Caves Demolisher | -6/Factory Demolisher | -6/Waste Demolisher | -6/Factory Demolisher | -6/Lower Caves Demolisher | -6/Lower Caves Demolisher | -6/Data Miner Demolisher | -5/Proximity Caves Demolisher | -5/Factory Demolisher | -5/Extension Demolisher | -5/Cetus Svarog | -5/Archives Svarog | -5/Hub_04(d) A7 | -4/Factory A7 | -4/Waste A7 | -4/Factory A7 | -4/Upper Caves Sentry | -4/Warlord Executioner | -3/Proximity Caves Revision | -3/Research Hunter | -3/Armory Resources | -11 -10 -10 -10 -9 -8 -8 -7 -7 -7 -7 -7 -7 -6 -6 -6 -6 -6 -6 -6 -5 -5 -5 -5 -5 -5 -4 -4 -4 -4 -4 -3 -3 -3 ----------- Run | Scr Mat Min Exi Min Mat Sto Fac Was Fac Low Low Zio Pro Fac Was Fac Low Low Dat Pro Fac Ext Cet Arc Hub Fac Was Fac Upp War Pro Res Arm Matter Collected 4316 | 75 140 60 . . . . . . . 149 162 . 36 364 204 286 288 139 23 177 433 849 4 . . . . 5 . 517 319 . 86 Remotely 2758 | . . . . . . . . . . . . . 36 364 204 286 288 139 23 177 433 808 . . . . . . . . . . . Salvage Created 9025 | . 290 40 . 86 92 1374 87 . 1626 127 175 14 62 703 600 75 . 53 10 57 320 547 60 . . 438 . 285 422 583 488 325 86 Parts 500 | . 26 5 . 8 8 74 6 . 67 12 10 1 14 50 2 1 . 7 . 9 20 26 2 . 1 26 . 12 29 21 34 8 21 Haulers Intercepted 5 | . 1 . . . . . . . . . . . . 3 . . . . . . . 1 . . . . . . . . . . . Recyclers Shooed 3 | . 3 . . . . . . . . . . . . . . . . . . . . . . . . . . . . . . . . Parts Field Recycled . | . . . . . . . . . . . . . . . . . . . . . . . . . . . . . . . . . . Retrieved Matter . | . . . . . . . . . . . . . . . . . . . . . . . . . . . . . . . . . . Parts Self-Destructed 123 | . . . . . . . . . . 9 4 . 3 . . . 18 9 . 25 . . . . . . . . 11 . 44 . . Prevented 18 | . . . . . . . . . . . . . . . . . . . . . . . . . . . . . 18 . . . . Kills | -11 -10 -10 -10 -9 -8 -8 -7 -7 -7 -7 -7 -7 -6 -6 -6 -6 -6 -6 -6 -5 -5 -5 -5 -5 -5 -4 -4 -4 -4 -4 -3 -3 -3 ------- Run | Scr Mat Min Exi Min Mat Sto Fac Was Fac Low Low Zio Pro Fac Was Fac Low Low Dat Pro Fac Ext Cet Arc Hub Fac Was Fac Upp War Pro Res Arm Combat Hostiles Destroyed 213 | 1 8 6 . 5 3 30 4 . 28 8 2 . 12 9 6 1 . 1 2 8 8 10 4 . 1 11 . 4 10 10 11 4 6 Melee 31 | . . . . . . . . . 28 2 . . . . . . . . . . . . . . . . . . . 1 . . . Guns 75 | . . . . 5 2 27 4 . . 6 2 . . . . . . . . . . . . . . 3 . . 5 . 11 4 6 Cannons 14 | . . . . . . . . . . . . . . . . . . . . . . . . . 1 4 . . . 9 . . . AOE 79 | 1 8 6 . . 1 1 . . . . . . 12 9 6 1 . 1 2 8 8 10 4 . . . . 1 . . . . . Classes Destroyed 23 | 1 5 1 . 3 2 1 . . 3 1 1 1 1 1 . . . . . . . . . . . . . . . 2 . . . Worker 15 | . . . . 2 . . . . 1 . . . . 8 . . . . . . 2 2 . . . . . . . . . . . Builder 34 | . 1 . . . . 1 . . 15 . . . . 7 . . . . . . 4 6 . . . . . . . . . . . Tunneler 2 | . . . . . . . . . . . . . . 1 . . . . . . . 1 . . . . . . . . . . . Hauler 5 | . 1 . . . . . . . . . . . . 3 . . . . . . . 1 . . . . . . . . . . . Recycler 13 | . 3 . . . . . . . 2 . . . . 3 . . . . . . 2 3 . . . . . . . . . . . Operator 4 | . . . . . 1 . . . . . . . . . . . . . . . 1 . . . . 1 . . . . . 1 . Watcher 8 | . 2 . . . . . . . 1 . . . . 1 . . . . . . 1 . 1 . . . . 1 . . . . 1 Swarmer 56 | . . 6 . . . 1 3 . 4 7 2 . 10 . . . . . . 8 . . . . . 4 . . 5 . 3 . 3 Saboteur 1 | . . . . . . . . . . . . . . . . . . . . . . . . . . . . . . 1 . . . Grunt 75 | . 8 . . 1 2 19 1 . 10 . . . . 5 . 1 . . . . 3 5 . . . 6 . 3 2 4 5 . . Brawler 7 | . . . . . . 2 . . 2 . . . . . . . . . . . . . . . . . . . . 2 1 . . Duelist 3 | . . . . 1 . . . . 2 . . . . . . . . . . . . . . . . . . . . . . . . Sentry 19 | . . . . . 1 8 . . . . . . 1 . . . . . . . 3 . . . 1 1 . . 1 . 1 1 1 Demolisher 1 | . . . . 1 . . . . . . . . . . . . . . . . . . . . . . . . . . . . . Hunter 16 | . . . . . . . . . 4 . . . . 2 . . . 1 . . 1 2 . . . . . 1 2 . . 2 1 Programmer 12 | . . . . . . . . . 5 . . . . 1 . . . . . . . 1 . . . . . . . 2 1 1 1 Heavy 3 | . . . . . . . . . 1 . . . . 1 . . . . . . 1 . . . . . . . . . . . . Behemoth 3 | . . . . . . . . . . . . . 1 . . . . . . . . 2 . . . . . . . . . . . Compactor 7 | . . . . . . . . . . 1 . . . . 6 . . . . . . . . . . . . . . . . . . Cetus Guard 4 | . . . . . . . . . . . . . . . . . . . . . . . 4 . . . . . . . . . . Enhanced Grunt 2 | . . . . . . . . . . . . . . . . . . . 2 . . . . . . . . . . . . . . Striker 1 | . . . . . . . . . . . . . . . . . . . . . . . . . . . . . . 1 . . . Zionite 1 | . . . . . . . . . . . . 1 . . . . . . . . . . . . . . . . . . . . . Assembled 3 | 1 . . . 2 . . . . . . . . . . . . . . . . . . . . . . . . . . . . . Wasp 1 | . . . . . . . . . . . . . . . . 1 . . . . . . . . . . . . . . . . . Thug 4 | . . . . . . . . . . . 2 . . . . . . . . . 2 . . . . . . . . . . . . Mutant 2 | . . . . . . . . . . . 1 . . . . . . 1 . . . . . . . . . . . . . . . Best Kill Streak 16 | 1 6 3 . 3 2 16 4 . 8 3 2 1 4 16 3 1 . 1 2 4 12 10 3 . 1 4 . 2 8 3 5 2 4 Combat Bots Only 16 | 1 4 3 . 2 2 16 4 . 5 3 2 . 4 3 3 1 . 1 2 4 5 5 2 . 1 4 . 2 8 3 5 2 3 Max Kills in Single Turn 7 | 1 2 3 . 1 1 1 1 . 1 1 1 1 4 7 1 2 . 1 2 4 7 4 2 . 1 1 . 1 2 1 1 1 1 Gunslinging 1 | . . . . . . . . . . . . . . . . . . . . . . . . . . . . . 1 . . . . Exploded 4 | 1 2 3 . . 1 1 . . . . . . 4 2 1 1 . 1 2 4 1 2 2 . . . . 1 . . . . . Melee 1 | . . . . . . . . . 1 1 . . . . . . . . . . . . . . . . . . . 1 . . . Uniques/NPCs Destroyed 1 | . . . . . . . . . . . . . . . . . . . . . . . . . . 1 . . . . . . . Svarog (-4/Factory) Combat | -11 -10 -10 -10 -9 -8 -8 -7 -7 -7 -7 -7 -7 -6 -6 -6 -6 -6 -6 -6 -5 -5 -5 -5 -5 -5 -4 -4 -4 -4 -4 -3 -3 -3 -------- Run | Scr Mat Min Exi Min Mat Sto Fac Was Fac Low Low Zio Pro Fac Was Fac Low Low Dat Pro Fac Ext Cet Arc Hub Fac Was Fac Upp War Pro Res Arm Damage Taken 16432 | 19 38 75 . 33 76 355 245 14 3167 1153 302 529 300 206 . . 10 29 6 26 207 143 137 . 270 237 . 272 352 1754 1568 2593 2316 Core 2782 | 19 2 57 . . 14 79 100 14 86 195 18 266 13 . . . . 9 . . 24 . 14 . 126 15 . 21 24 117 260 762 547 Absorbed by Shields 1009 | . . . . . . . . . . . . . . . . . . . . . 4 137 89 . 33 222 . 169 199 . . . 156 Redirected to Shielding 464 | . . . . . . . . . 102 . . . 87 63 . . . . . . . . . . . 15 . 34 40 123 . . . Regen/Repaired (Parts) 319 | . . . . . . . . . . . . . . . . . . . . . . . . . . 71 . 39 83 126 . . . Core Remaining (%) 69 | 92 . . . 68 . 83 . . . . . . 1 . . . . . . 98 . . . . 83 . . . . . 62 . . Volleys Fired 423 | 1 15 5 . . . . 22 . . 26 27 3 19 13 15 1 . 2 1 3 11 9 6 5 10 33 3 17 17 38 36 48 37 Largest 3 | 1 1 1 . . . . 1 . . 2 2 2 1 1 1 1 . 1 1 1 1 1 1 2 2 2 2 2 2 1 2 2 3 Hottest 300 | 30 30 30 . . . . 65 . . 53 139 80 30 30 30 30 . 30 30 30 30 30 30 226 226 130 130 130 130 90 76 225 300 Shots Fired 717 | 1 15 5 . 21 9 77 22 . . 29 54 6 19 13 15 1 . 2 1 3 11 9 6 6 18 60 6 26 34 38 63 69 78 Gun 536 | . . . . 21 9 77 22 . . 29 40 6 . . . . . . . . . . . . . 54 6 26 34 2 63 69 78 Cannon 73 | . . . . . . . . . . . 7 . . . . . . . . . . . . 6 18 6 . . . 36 . . . Launcher 101 | 1 15 5 . . . . . . . . . . 19 13 15 1 . 2 1 3 11 9 6 . . . . . . . . . . Special 7 | . . . . . . . . . . . 7 . . . . . . . . . . . . . . . . . . . . . . Kinetic 245 | . . . . . . . . . . 29 47 . . . . . . . . . . . . . . . . . . 36 63 25 45 Thermal 142 | . . . . . . . 22 . . . 7 6 . . . . . . . . . . . 6 18 6 . . . . . 44 33 Explosive 101 | 1 15 5 . . . . . . . . . . 19 13 15 1 . 2 1 3 11 9 6 . . . . . . . . . . Electromagnetic 229 | . . . . 21 9 77 . . . . . . . . . . . . . . . . . . . 54 6 26 34 2 . . . Robot Hit Streak 64 | . 6 . . 8 6 29 9 . . 10 15 2 23 51 64 23 . 25 9 . 17 20 10 3 4 7 6 5 8 11 8 8 7 Robot Miss Streak 4 | . 1 . . 4 1 3 2 . . 1 3 1 1 . 1 . . 1 . . 1 1 1 2 2 2 . 1 2 1 2 3 4 Penetration Max 1 | . . . . . . . . . . . . . . . . . . . . . . . . . . . . . . . 1 1 . Secondary Targets 3 | . . . . . . . . . . . . . . . . . . . . . . . . . . . . . 2 . 1 . . Max Gunslinging Chain 1 | . . . . . . . . . . . . . . . . . . . . . . . . . . . . . 1 . 1 . . Autonomous 107 | . . . . 21 9 77 . . . . . . . . . . . . . . . . . . . . . . . . . . . Shots Hit Robots 569 | . 6 . . 17 9 74 15 . 66 27 40 3 7 7 13 1 . 2 1 . 4 7 2 3 10 43 6 18 27 20 46 47 48 Core Hits 489 | 1 25 7 . 11 6 64 9 . 45 16 14 1 13 38 7 2 . 3 5 8 33 37 31 1 3 24 1 5 11 8 24 17 19 Critical Kills 23 | . . . . . . . . . 17 3 . . . . . . . . . . . . . . . . . . . . 2 . 1 Critical Parts Destroyed 19 | . . . . . . . . . 9 1 2 . . . . . . . . . . . . . . . . . . . 5 1 1 Critical Strikes 61 | . . . . 4 1 9 . . 26 4 2 . . . . . . . . . . . . . . . . . . 4 7 2 2 Burn 1 | . . . . . . . . . . . . . . . . . . . . . . . . . . . . . . . . 1 . Destroy 42 | . . . . . . . . . 26 4 2 . . . . . . . . . . . . . . . . . . . 7 1 2 Blast 4 | . . . . . . . . . . . . . . . . . . . . . . . . . . . . . . 4 . . . Corrupt 14 | . . . . 4 1 9 . . . . . . . . . . . . . . . . . . . . . . . . . . . Melee Attacks 167 | . . . . . . . . . 148 19 . . . . . . . . . . . . . . . . . . . . . . . Kinetic 167 | . . . . . . . . . 148 19 . . . . . . . . . . . . . . . . . . . . . . . Impact . | . . . . . . . . . . . . . . . . . . . . . . . . . . . . . . . . . . Slashing . | . . . . . . . . . . . . . . . . . . . . . . . . . . . . . . . . . . Piercing . | . . . . . . . . . . . . . . . . . . . . . . . . . . . . . . . . . . Sneak Attacks 18 | . . . . . . . . . 18 . . . . . . . . . . . . . . . . . . . . . . . . Combat Hostiles . | . . . . . . . . . . . . . . . . . . . . . . . . . . . . . . . . . . Follow-up Attacks . | . . . . . . . . . . . . . . . . . . . . . . . . . . . . . . . . . . Damage Inflicted 44534 | 60 915 428 . 325 276 2286 232 . 4073 557 761 39 2491 3967 6904 270 . 136 557 762 2728 4969 2052 151 432 1298 12 632 718 2083 1764 1284 1372 Guns 10727 | . . . . 325 240 2200 232 . . 385 554 39 . . . . . . . . . . . . . 1041 12 561 718 . 1764 1284 1372 Cannons 3068 | . . . . . . . . . . . 148 . . . . . . . . . . . . 151 432 257 . . . 2080 . . . Explosions 26420 | 60 915 428 . . 36 86 . . . . . . 2491 3967 6904 270 . 136 545 762 2728 4969 2052 . . . . 71 . . . . . Melee 4245 | . . . . . . . . . 4073 172 . . . . . . . . . . . . . . . . . . . . . . . Ramming 15 | . . . . . . . . . . . . . . . . . . . 12 . . . . . . . . . . 3 . . . Kinetic 10444 | . . . . . . . . . 4073 557 702 . . . . . . . . . . . . . . . . . . 2080 1764 535 733 Thermal 2779 | . . . . . 36 86 232 . . . 59 39 . . . . . . . 28 . . . 151 432 257 . 71 . . . 749 639 Explosive 26199 | 60 915 428 . . . . . . . . . . 2491 3967 6904 270 . 136 545 734 2728 4969 2052 . . . . . . . . . . Electromagnetic 5097 | . . . . 325 240 2200 . . . . . . . . . . . . . . . . . . . 1041 12 561 718 . . . . Impact . | . . . . . . . . . . . . . . . . . . . . . . . . . . . . . . . . . . Slashing . | . . . . . . . . . . . . . . . . . . . . . . . . . . . . . . . . . . Piercing . | . . . . . . . . . . . . . . . . . . . . . . . . . . . . . . . . . . Highest Corruption 6 | . . . . . . . . . . . . . . . . 1 1 1 1 1 . . . . . . 1 1 1 2 4 1 6 Average Corruption 1 | . . . . . . . . . . . . . . . . 1 1 1 1 1 . . . . . . 1 1 1 1 3 1 3 Corruption Purged . | . . . . . . . . . . . . . . . . . . . . . . . . . . . . . . . . . . Corruption Blocked . | . . . . . . . . . . . . . . . . . . . . . . . . . . . . . . . . . . Effects 46 | . . . . . . . . . . . . . . . . 1 6 6 . 2 . . . . . . 1 . . 3 19 . 8 Message Errors 9 | . . . . . . . . . . . . . . . . . 1 3 . 1 . . . . . . . . . 1 3 . . Matter Fused 12 | . . . . . . . . . . . . . . . . . 2 1 . . . . . . . . 1 . . . 7 . 1 Heat Flow Errors 7 | . . . . . . . . . . . . . . . . . 1 1 . . . . . . . . . . . 1 2 . 2 Energy Discharges 8 | . . . . . . . . . . . . . . . . 1 2 1 . 1 . . . . . . . . . . 1 . 2 Data Loss (minor) 4 | . . . . . . . . . . . . . . . . . . . . . . . . . . . . . . 1 2 . 1 Data Loss (major) 4 | . . . . . . . . . . . . . . . . . . . . . . . . . . . . . . . 3 . 1 Alerts 1 | . . . . . . . . . . . . . . . . . . . . . . . . . . . . . . . 1 . . Weapon Failures 1 | . . . . . . . . . . . . . . . . . . . . . . . . . . . . . . . . . 1 Overload Shots 4 | . . . . . . . . . . . . . . . . . . . . . . . . . . . . . . . . 1 3 Overflow Damage 2331 | . 3 . . . . 4 . . 442 . 26 . 202 360 138 20 . . 30 111 263 406 . 7 . . . . . 319 . . . Projectiles 352 | . . . . . . . . . . . 26 . . . . . . . . . . . . 7 . . . . . 319 . . . Explosions 1537 | . 3 . . . . 4 . . . . . . 202 360 138 20 . . 30 111 263 406 . . . . . . . . . . . Melee 442 | . . . . . . . . . 442 . . . . . . . . . . . . . . . . . . . . . . . . Knockbacks 11 | . . . . . . . . . . . . . . . . . . . . . . . . . . . . . . 11 . . . Impact . | . . . . . . . . . . . . . . . . . . . . . . . . . . . . . . . . . . Kinetic 11 | . . . . . . . . . . . . . . . . . . . . . . . . . . . . . . 11 . . . Secondary . | . . . . . . . . . . . . . . . . . . . . . . . . . . . . . . . . . . Self-Inflicted Damage 29 | . 4 19 . . . . . . . . . . . . . . . . 6 . . . . . . . . . . . . . . Shots 2 | . 1 1 . . . . . . . . . . . . . . . . . . . . . . . . . . . . . . . Rammed 2 | . . . . . . . . . . . . . . . . . . . 1 . . . . . . . . . . 1 . . . Targets Rammed 3 | . . . . . . . . . . . . . . . . . . . 1 . . . . . . . . . . 2 . . . Kicked . | . . . . . . . . . . . . . . . . . . . . . . . . . . . . . . . . . . Crushed 1 | . . . . . . . . . . . . . . . . . . . . . . . . . . . . . . 1 . . . Highest Temperature 276 | 2 8 . . . 1 19 8 . . 28 . 225 . . . . 124 90 . . . . . . . . . . . 239 173 163 276 Average Temperature 76 | 2 4 . . . 1 7 4 . . 14 . 155 . . . . 80 66 . . . . . . . . . . . 90 44 52 102 Received Heat Transfer 1875 | . 18 . . . 36 189 45 9 633 . . . 36 . . . . . . 9 72 32 13 . 4 46 . 43 32 126 225 220 87 Effects 2 | . . . . . . . . . . . . 2 . . . . . . . . . . . . . . . . . . . . . Interference 2 | . . . . . . . . . . . . 2 . . . . . . . . . . . . . . . . . . . . . Siege Activations . | . . . . . . . . . . . . . . . . . . . . . . . . . . . . . . . . . . Robots Corrupted 16 | . . . . . . 2 . . . . . . . . . . . . . . . . . . . 5 . 4 5 . . . . Combat Hostiles 14 | . . . . . . 2 . . . . . . . . . . . . . . . . . . . 4 . 3 5 . . . . Parts Fried 25 | . . . . . 1 6 . . . . . . . . . . . . . . . . . . . 10 . 5 3 . . . . Impact Corruptions . | . . . . . . . . . . . . . . . . . . . . . . . . . . . . . . . . . . Robots Melted . | . . . . . . . . . . . . . . . . . . . . . . . . . . . . . . . . . . Combat Hostiles . | . . . . . . . . . . . . . . . . . . . . . . . . . . . . . . . . . . Parts Melted 10 | . . . . . . 1 . . . . . . . . . . . . . . . . . . . . . . . . . 9 . Heat Transferred 4070 | . . . . . 50 100 555 . . . 400 111 . . . . . . . 80 . . . 111 370 185 . 50 . . . 1303 755 Parts Sabotaged 4 | . . . . . . . . . . . . . . . . . . . . . . . . . . . . . . . . . 4 Parts Stolen . | . . . . . . . . . . . . . . . . . . . . . . . . . . . . . . . . . . Parts Stripped . | . . . . . . . . . . . . . . . . . . . . . . . . . . . . . . . . . . Power Chain Reactions 3 | . . . . . 1 1 . . . . . . . . . . . . . . . . . . . . . 1 . . . . . Missiles Intercepted . | . . . . . . . . . . . . . . . . . . . . . . . . . . . . . . . . . . Alert | -11 -10 -10 -10 -9 -8 -8 -7 -7 -7 -7 -7 -7 -6 -6 -6 -6 -6 -6 -6 -5 -5 -5 -5 -5 -5 -4 -4 -4 -4 -4 -3 -3 -3 ------- Run | Scr Mat Min Exi Min Mat Sto Fac Was Fac Low Low Zio Pro Fac Was Fac Low Low Dat Pro Fac Ext Cet Arc Hub Fac Was Fac Upp War Pro Res Arm Peak Influence 1557 | 20 515 494 . 110 183 1021 136 107 431 . . . . 653 281 813 . . . . 1492 1557 1270 736 393 514 97 243 . . . 154 245 Initial 895 | . 13 155 . . 42 76 36 47 37 . . . . 63 158 56 . . . . 371 721 895 508 257 192 82 67 . . . . 80 Average 290 | . 240 417 . 53 114 528 82 60 258 . . . . 343 226 392 . . . . 875 1047 1106 545 312 302 90 133 . . . 61 151 Maximum Alert Level 4 | . 2 2 . . . 3 . . 2 . . . . 2 1 3 . . . . 4 4 4 3 1 2 . 1 . . . . 1 Low Security (%) 46 | 100 36 . . 100 100 28 100 100 21 . . . . 32 20 26 . . . . . . . . . 18 100 76 . . . 100 73 Level 1 34 | . 55 45 . . . 9 . . 77 . . . . 27 79 24 . . . . 23 . . . 100 55 . 23 . . . . 26 Level 2 7 | . 8 54 . . . 17 . . . . . . . 39 . 29 . . . . 24 . . 80 . 25 . . . . . . . Level 3 7 | . . . . . . 43 . . . . . . . . . 20 . . . . 4 63 66 20 . . . . . . . . . Level 4 4 | . . . . . . . . . . . . . . . . . . . . . 47 36 33 . . . . . . . . . . Level 5 . | . . . . . . . . . . . . . . . . . . . . . . . . . . . . . . . . . . High Security . | . . . . . . . . . . . . . . . . . . . . . . . . . . . . . . . . . . Max Security . | . . . . . . . . . . . . . . . . . . . . . . . . . . . . . . . . . . Squads Dispatched 49 | . 2 1 . . . 6 1 . 7 . . . . 7 . 7 . . . . 8 2 . . . 3 . 2 . . 1 1 1 Investigation 16 | . 1 1 . . . 2 1 . 1 . . . . 3 . 3 . . . . 2 . . . . . . 2 . . . . . Extermination 5 | . . . . . . . . . 3 . . . . 1 . . . . . . . . . . . 1 . . . . . . . Reinforcement 13 | . 1 . . . . 1 . . 2 . . . . 2 . 1 . . . . 2 1 . . . 1 . . . . . 1 1 Assault 8 | . . . . . . 2 . . 1 . . . . 1 . . . . . . 1 1 . . . 1 . . . . 1 . . Garrison 7 | . . . . . . 1 . . . . . . . . . 3 . . . . 3 . . . . . . . . . . . . Intercept . | . . . . . . . . . . . . . . . . . . . . . . . . . . . . . . . . . . Searches Triggered . | . . . . . . . . . . . . . . . . . . . . . . . . . . . . . . . . . . Construction Impeded 2 | . . . . . . . . . . . . . . 1 . . . . . . . 1 . . . . . . . . . . . Haulers Reinforced . | . . . . . . . . . . . . . . . . . . . . . . . . . . . . . . . . . . Active Scanning Responses . | . . . . . . . . . . . . . . . . . . . . . . . . . . . . . . . . . . Cargo Convoy Interrupts . | . . . . . . . . . . . . . . . . . . . . . . . . . . . . . . . . . . Stealth | -11 -10 -10 -10 -9 -8 -8 -7 -7 -7 -7 -7 -7 -6 -6 -6 -6 -6 -6 -6 -5 -5 -5 -5 -5 -5 -4 -4 -4 -4 -4 -3 -3 -3 --------- Run | Scr Mat Min Exi Min Mat Sto Fac Was Fac Low Low Zio Pro Fac Was Fac Low Low Dat Pro Fac Ext Cet Arc Hub Fac Was Fac Upp War Pro Res Arm Distress Signals 11 | . 1 . . . . 2 . . 2 . . . . . . . . . . . 1 . 2 . . . . . . . . . 3 Communications Jammed . | . . . . . . . . . . . . . . . . . . . . . . . . . . . . . . . . . . Distress Signals . | . . . . . . . . . . . . . . . . . . . . . . . . . . . . . . . . . . Times Spotted 442 | 6 10 2 . 12 3 40 11 6 39 15 3 2 9 9 5 9 5 4 4 16 11 26 10 . 6 22 5 6 10 58 17 22 39 Peak Tracking Total 17 | 4 5 3 . 6 2 10 5 5 6 5 3 1 4 4 3 3 7 3 4 6 5 7 5 . 3 5 6 4 5 17 8 6 12 Tactical Retreats 29 | 1 . . . 1 . 2 . 1 . 5 1 . 1 . . . 1 . . . . . . . . 2 . 1 . 2 6 3 2 Traps | -11 -10 -10 -10 -9 -8 -8 -7 -7 -7 -7 -7 -7 -6 -6 -6 -6 -6 -6 -6 -5 -5 -5 -5 -5 -5 -4 -4 -4 -4 -4 -3 -3 -3 ------- Run | Scr Mat Min Exi Min Mat Sto Fac Was Fac Low Low Zio Pro Fac Was Fac Low Low Dat Pro Fac Ext Cet Arc Hub Fac Was Fac Upp War Pro Res Arm Traps Triggered 17 | . . . . . 1 1 1 . 9 . . . . 2 . . . . . . 1 . . . . 1 . . . . . . 1 Indirectly . | . . . . . . . . . . . . . . . . . . . . . . . . . . . . . . . . . . Trap Hack Attempts . | . . . . . . . . . . . . . . . . . . . . . . . . . . . . . . . . . . Triggered . | . . . . . . . . . . . . . . . . . . . . . . . . . . . . . . . . . . Disarmed . | . . . . . . . . . . . . . . . . . . . . . . . . . . . . . . . . . . Reprogrammed . | . . . . . . . . . . . . . . . . . . . . . . . . . . . . . . . . . . Reused . | . . . . . . . . . . . . . . . . . . . . . . . . . . . . . . . . . . Traps Extracted . | . . . . . . . . . . . . . . . . . . . . . . . . . . . . . . . . . . Installed . | . . . . . . . . . . . . . . . . . . . . . . . . . . . . . . . . . . Triggered 32 | . . . . . . 3 . . . . 1 . . 3 . 3 . . . . 2 1 . . . 8 . . 1 10 . . . Machines | -11 -10 -10 -10 -9 -8 -8 -7 -7 -7 -7 -7 -7 -6 -6 -6 -6 -6 -6 -6 -5 -5 -5 -5 -5 -5 -4 -4 -4 -4 -4 -3 -3 -3 ---------- Run | Scr Mat Min Exi Min Mat Sto Fac Was Fac Low Low Zio Pro Fac Was Fac Low Low Dat Pro Fac Ext Cet Arc Hub Fac Was Fac Upp War Pro Res Arm Machines Disabled 36 | . . 2 . 1 3 1 . . 3 . . . . 4 . . . . . 4 6 . . 2 . 3 . 2 . 2 2 . 1 Max in Single Turn 4 | . . 1 . 1 2 1 . . 1 . . . . 2 . . . . . 4 2 . . 1 . 1 . 2 . 1 2 . 1 Garrison Access 2 | . . . . . . 1 . . 1 . . . . . . . . . . . . . . . . . . . . . . . . Machines Sabotaged . | . . . . . . . . . . . . . . . . . . . . . . . . . . . . . . . . . . Garrisons Compromised . | . . . . . . . . . . . . . . . . . . . . . . . . . . . . . . . . . . Overloaded Fab Kills . | . . . . . . . . . . . . . . . . . . . . . . . . . . . . . . . . . . Hacking | -11 -10 -10 -10 -9 -8 -8 -7 -7 -7 -7 -7 -7 -6 -6 -6 -6 -6 -6 -6 -5 -5 -5 -5 -5 -5 -4 -4 -4 -4 -4 -3 -3 -3 --------- Run | Scr Mat Min Exi Min Mat Sto Fac Was Fac Low Low Zio Pro Fac Was Fac Low Low Dat Pro Fac Ext Cet Arc Hub Fac Was Fac Upp War Pro Res Arm Machines Accessed 31 | . 4 2 1 . 2 5 . . . . 1 . . 2 . 2 . . 3 . . 2 . . 1 3 . 1 . 1 . 1 . Terminals 20 | . 3 1 . . 2 3 . . . . . . . 2 . 2 . . . . . 2 . . 1 2 . 1 . . . 1 . Fabricators . | . . . . . . . . . . . . . . . . . . . . . . . . . . . . . . . . . . Repair Stations 1 | . . . . . . . . . . . . . . . . . . . . . . . . . . 1 . . . . . . . Recycling Units 2 | . 1 . . . . 1 . . . . . . . . . . . . . . . . . . . . . . . . . . . Scanalyzers . | . . . . . . . . . . . . . . . . . . . . . . . . . . . . . . . . . . Garrison Access 1 | . . . . . . 1 . . . . . . . . . . . . . . . . . . . . . . . . . . . Total Hacks 126 | . 10 6 1 . 20 21 . . . . 1 . . 7 . 5 . . 16 . . 5 . . 2 16 . 9 . 6 . 1 . Successful 88 | . 3 4 1 . 18 16 . . . . 1 . . 4 . 2 . . 16 . . 2 . . 1 7 . 6 . 6 . 1 . Failed 38 | . 7 2 . . 2 5 . . . . . . . 3 . 3 . . . . . 3 . . 1 9 . 3 . . . . . Catastrophic 8 | . 3 . . . . 1 . . . . . . . 1 . 1 . . . . . . . . 1 1 . . . . . . . Database Lockouts . | . . . . . . . . . . . . . . . . . . . . . . . . . . . . . . . . . . Manual 49 | . 1 4 . . 7 21 . . . . . . . . . . . . . . . . 1 . . 10 . 4 . 1 . . . Terminals 92 | . 9 5 . . 20 19 . . . . . . . 7 . 5 . . . . . 5 . . 2 10 . 9 . . . 1 . Fabricators . | . . . . . . . . . . . . . . . . . . . . . . . . . . . . . . . . . . Repair Stations 6 | . . . . . . . . . . . . . . . . . . . . . . . . . . 6 . . . . . . . Recycling Units 2 | . 1 . . . . 1 . . . . . . . . . . . . . . . . . . . . . . . . . . . Scanalyzers . | . . . . . . . . . . . . . . . . . . . . . . . . . . . . . . . . . . Garrison Access 1 | . . . . . . 1 . . . . . . . . . . . . . . . . . . . . . . . . . . . Terminal Hacks 76 | . 2 2 1 . 18 14 . . . . 1 . . 4 . 2 . . 16 . . 2 . . 1 3 . 3 . 6 . 1 . Record 20 | . . . 1 . 7 . . . . . . . . . . . . . 11 . . . . . . . . . . . . 1 . Robot Schematic 5 | . . . . . . . . . . . . . . . . . . . 5 . . . . . . . . . . . . . . Robot Analysis 11 | . . . . . 8 3 . . . . . . . . . . . . . . . . . . . . . . . . . . . Prototype ID Bank 8 | . . . . . 1 . . . . . . . . . . . . . . . . . . . . . . 1 . 6 . . . Open Door 4 | . . 1 . . . . . . . . 1 . . . . . . . . . . 2 . . . . . . . . . . . Level Access Points 1 | . . . . . . . . . . . . . . . . . . . . . . . . . 1 . . . . . . . . Branch Access Points 4 | . . . . . 1 . . . . . . . . . . 1 . . . . . . . . . 1 . 1 . . . . . Terminal Index 1 | . . . . . . . . . . . . . . . . 1 . . . . . . . . . . . . . . . . . Garrison Index 1 | . . . . . . . . . . . . . . 1 . . . . . . . . . . . . . . . . . . . Alert Level 3 | . . . . . . 2 . . . . . . . 1 . . . . . . . . . . . . . . . . . . . Unreport Threat 12 | . 1 . . . . 9 . . . . . . . . . . . . . . . . . . . 2 . . . . . . . Surveillance Status 1 | . 1 . . . . . . . . . . . . . . . . . . . . . . . . . . . . . . . . Hauler Manifests 1 | . . . . . . . . . . . . . . 1 . . . . . . . . . . . . . . . . . . . Zone Layout 4 | . . 1 . . 1 . . . . . . . . 1 . . . . . . . . . . . . . 1 . . . . . Fabricator Hacks . | . . . . . . . . . . . . . . . . . . . . . . . . . . . . . . . . . . Repair Station Hacks 4 | . . . . . . . . . . . . . . . . . . . . . . . . . . 4 . . . . . . . Scan Component 2 | . . . . . . . . . . . . . . . . . . . . . . . . . . 2 . . . . . . . Repair 2 | . . . . . . . . . . . . . . . . . . . . . . . . . . 2 . . . . . . . Recycling Unit Hacks . | . . . . . . . . . . . . . . . . . . . . . . . . . . . . . . . . . . Scanalyzer . | . . . . . . . . . . . . . . . . . . . . . . . . . . . . . . . . . . Garrison Access Hacks 1 | . . . . . . 1 . . . . . . . . . . . . . . . . . . . . . . . . . . . Seal Access 1 | . . . . . . 1 . . . . . . . . . . . . . . . . . . . . . . . . . . . Unauthorized Hacks 6 | . 1 1 . . . 1 . . . . . . . . . . . . . . . . . . . . . 3 . . . . . Terminals 4 | . . 1 . . . . . . . . . . . . . . . . . . . . . . . . . 3 . . . . . Track 1 | . . . . . . . . . . . . . . . . . . . . . . . . . . . . 1 . . . . . Assimilate 1 | . . 1 . . . . . . . . . . . . . . . . . . . . . . . . . . . . . . . Botnet 1 | . . . . . . . . . . . . . . . . . . . . . . . . . . . . 1 . . . . . Operators 1 | . . . . . . . . . . . . . . . . . . . . . . . . . . . . 1 . . . . . Fabricators . | . . . . . . . . . . . . . . . . . . . . . . . . . . . . . . . . . . Repair Stations . | . . . . . . . . . . . . . . . . . . . . . . . . . . . . . . . . . . Recycling Units 2 | . 1 . . . . 1 . . . . . . . . . . . . . . . . . . . . . . . . . . . Tunnel 2 | . 1 . . . . 1 . . . . . . . . . . . . . . . . . . . . . . . . . . . Scanalyzers . | . . . . . . . . . . . . . . . . . . . . . . . . . . . . . . . . . . Garrison Access . | . . . . . . . . . . . . . . . . . . . . . . . . . . . . . . . . . . Data Cores Recovered 4 | . . . . . 1 . . . . . . . . . . 2 . . . . . . . . . 1 . . . . . . . Used 3 | . . . . . 1 . . . . . . . . . . 1 . . . . . . . . . 1 . . . . . . . Hacking Detections 19 | . 3 1 . . 2 1 . . . . . . . 2 . 2 . . . . . 2 1 . 1 2 . 1 . . . 1 . Full Trace Events 7 | . 3 1 . . . . . . . . . . . 2 . 1 . . . . . . . . . . . . . . . . . Feedback Events 1 | . . . . . . . . . . . . . . . . 1 . . . . . . . . . . . . . . . . . Corruption 1 | . . . . . . . . . . . . . . . . 1 . . . . . . . . . . . . . . . . . Feedback Blocked . | . . . . . . . . . . . . . . . . . . . . . . . . . . . . . . . . . . Robot Schematics Acquired 5 | . . . . . . . . . . . . . . . . . . . 5 . . . . . . . . . . . . . . Robots Built . | . . . . . . . . . . . . . . . . . . . . . . . . . . . . . . . . . . Authchips . | . . . . . . . . . . . . . . . . . . . . . . . . . . . . . . . . . . Time . | . . . . . . . . . . . . . . . . . . . . . . . . . . . . . . . . . . Total Robot Build Rating . | . . . . . . . . . . . . . . . . . . . . . . . . . . . . . . . . . . Part Schematics Acquired . | . . . . . . . . . . . . . . . . . . . . . . . . . . . . . . . . . . Parts Built . | . . . . . . . . . . . . . . . . . . . . . . . . . . . . . . . . . . Authchips . | . . . . . . . . . . . . . . . . . . . . . . . . . . . . . . . . . . Time . | . . . . . . . . . . . . . . . . . . . . . . . . . . . . . . . . . . Total Part Build Rating . | . . . . . . . . . . . . . . . . . . . . . . . . . . . . . . . . . . Parts Repaired 2 | . . . . . . . . . . . . . . . . . . . . . . . . . . 2 . . . . . . . Time 136 | . . . . . . . . . . . . . . . . . . . . . . . . . . 136 . . . . . . . Parts Recycled . | . . . . . . . . . . . . . . . . . . . . . . . . . . . . . . . . . . Recycled Matter . | . . . . . . . . . . . . . . . . . . . . . . . . . . . . . . . . . . Retrieved Matter . | . . . . . . . . . . . . . . . . . . . . . . . . . . . . . . . . . . Retrieved Components . | . . . . . . . . . . . . . . . . . . . . . . . . . . . . . . . . . . Parts Scanalyzed . | . . . . . . . . . . . . . . . . . . . . . . . . . . . . . . . . . . Part Schematics Acquired . | . . . . . . . . . . . . . . . . . . . . . . . . . . . . . . . . . . Parts Damaged . | . . . . . . . . . . . . . . . . . . . . . . . . . . . . . . . . . . Bothacking | -11 -10 -10 -10 -9 -8 -8 -7 -7 -7 -7 -7 -7 -6 -6 -6 -6 -6 -6 -6 -5 -5 -5 -5 -5 -5 -4 -4 -4 -4 -4 -3 -3 -3 ------------ Run | Scr Mat Min Exi Min Mat Sto Fac Was Fac Low Low Zio Pro Fac Was Fac Low Low Dat Pro Fac Ext Cet Arc Hub Fac Was Fac Upp War Pro Res Arm Used RIF Installer . | . . . . . . . . . . . . . . . . . . . . . . . . . . . . . . . . . . Robots Hacked 8 | 1 . . . . . . 1 . . 1 . . . . . . . . . . . . . . . . . . . . . 2 3 Non-combat . | . . . . . . . . . . . . . . . . . . . . . . . . . . . . . . . . . . Combat 8 | 1 . . . . . . 1 . . 1 . . . . . . . . . . . . . . . . . . . . . 2 3 Robot Hacks Applied 11 | 1 . . . . . . 2 . . 1 . . . . . . . . . . . . . . . . . . . . . 4 3 find_shortcuts 8 | 1 . . . . . . 1 . . 1 . . . . . . . . . . . . . . . . . . . . . 2 3 find_garrison 3 | . . . . . . . 1 . . . . . . . . . . . . . . . . . . . . . . . . 2 . Relay Couplers Released 5 | . . . . . . . . . 5 . . . . . . . . . . . . . . . . . . . . . . . . Machine Destruction 1 | . . . . . . . . . 1 . . . . . . . . . . . . . . . . . . . . . . . . Programmers 4 | . . . . . . . . . 4 . . . . . . . . . . . . . . . . . . . . . . . . Fabnet Peak Effective % . | . . . . . . . . . . . . . . . . . . . . . . . . . . . . . . . . . . Robots Rewired 10 | . . . . . . . . . . . . . . . . . . . . . . 3 . . . . . . . 4 2 . 1 Allies Hacked . | . . . . . . . . . . . . . . . . . . . . . . . . . . . . . . . . . . Hacks Repelled . | . . . . . . . . . . . . . . . . . . . . . . . . . . . . . . . . . . Allies | -11 -10 -10 -10 -9 -8 -8 -7 -7 -7 -7 -7 -7 -6 -6 -6 -6 -6 -6 -6 -5 -5 -5 -5 -5 -5 -4 -4 -4 -4 -4 -3 -3 -3 -------- Run | Scr Mat Min Exi Min Mat Sto Fac Was Fac Low Low Zio Pro Fac Was Fac Low Low Dat Pro Fac Ext Cet Arc Hub Fac Was Fac Upp War Pro Res Arm Total Allies 44 | . . 2 . . . 2 . . . . . . . 2 19 . . . . . . 6 4 1 . . . . . 5 2 . 1 Largest Group 19 | . . 2 2 . . 2 . . . . . . . 2 19 19 15 8 6 6 5 6 6 5 1 1 . . . 4 2 . 1 Highest-Rated Group 684 | . . 51 51 . . 62 . . . . . . . 62 684 684 550 351 284 284 231 309 582 486 159 159 . . . 255 94 . 65 Highest-Rated Ally 159 | . . 31 31 . . 31 . . . . . . . 31 50 50 50 50 50 50 47 159 159 159 159 159 . . . 150 47 . 65 Total Orders . | . . . . . . . . . . . . . . . . . . . . . . . . . . . . . . . . . . Ally Attacks 419 | . . 4 . . . 22 . . . . . . . 11 . 86 35 12 17 42 21 70 16 26 12 4 . . . 27 14 . . Total Damage 13062 | . . 63 . . . 374 . . . . . . . 438 . 2318 1046 908 986 1783 664 1688 572 961 205 64 . . . 618 374 . . Kills 95 | . . 2 . . . 5 . . . . . . . 1 . 15 10 7 2 15 5 15 5 6 2 1 . . . 2 2 . . Allies Corrupted 2 | . . . . . . . . . . . . . . . . . . . . . . . . . . . . . . 2 . . . Allies Melted . | . . . . . . . . . . . . . . . . . . . . . . . . . . . . . . . . . . Intel | -11 -10 -10 -10 -9 -8 -8 -7 -7 -7 -7 -7 -7 -6 -6 -6 -6 -6 -6 -6 -5 -5 -5 -5 -5 -5 -4 -4 -4 -4 -4 -3 -3 -3 ------- Run | Scr Mat Min Exi Min Mat Sto Fac Was Fac Low Low Zio Pro Fac Was Fac Low Low Dat Pro Fac Ext Cet Arc Hub Fac Was Fac Upp War Pro Res Arm Robot Analysis Total 143 | 1 . . . . 8 3 . 1 . 2 . . . . . . . . 128 . . . . . . . . . . . . . . Derelict Logs Recovered 10 | . . . . . . . . . . . . 1 3 . . . 1 1 . 3 . . . . . . . . 1 . . . . Drone Launches . | . . . . . . . . . . . . . . . . . . . . . . . . . . . . . . . . . . Drone Recoveries . | . . . . . . . . . . . . . . . . . . . . . . . . . . . . . . . . . . Exploration | -11 -10 -10 -10 -9 -8 -8 -7 -7 -7 -7 -7 -7 -6 -6 -6 -6 -6 -6 -6 -5 -5 -5 -5 -5 -5 -4 -4 -4 -4 -4 -3 -3 -3 ------------- Run | Scr Mat Min Exi Min Mat Sto Fac Was Fac Low Low Zio Pro Fac Was Fac Low Low Dat Pro Fac Ext Cet Arc Hub Fac Was Fac Upp War Pro Res Arm Turns Passed 16751 | 2052 345 271 110 148 145 446 243 66 2499 395 572 815 793 423 457 344 501 738 211 640 304 600 208 50 96 585 44 143 167 754 804 392 390 Spaces Moved 12134 | 157 347 293 181 177 175 492 186 82 1260 430 303 1324 900 347 226 216 342 501 143 432 185 364 133 46 69 725 62 149 200 703 460 249 275 Core 1542 | 130 . 5 116 . . . . 56 . 1 2 1197 . . . . . . . . . . 1 4 . 1 . . . 1 . 20 8 Treads 1869 | . . . . . . . . 13 1260 118 301 18 . . . . . . . . . . . . . . . . . 111 . 18 30 Legs 1200 | . . . . . . . 107 13 . . . 102 . . . . . . . . . . . 24 69 31 . . . 24 460 211 159 Wheels . | . . . . . . . . . . . . . . . . . . . . . . . . . . . . . . . . . . Hover 7134 | 27 347 288 65 177 175 492 79 . . . . 7 900 347 226 216 342 501 143 432 185 364 132 18 . 693 62 149 200 567 . . . Flight 389 | . . . . . . . . . . 311 . . . . . . . . . . . . . . . . . . . . . . 78 Fastest Speed 32 | 50 76 50 50 80 80 80 80 50 160 32 50 50 72 72 146 146 146 146 146 146 146 146 50 50 100 50 56 56 56 50 100 50 34 Average Speed 100 | 54 76 75 60 80 80 80 103 78 160 67 164 58 72 101 146 146 146 146 146 146 146 146 145 78 100 57 56 56 56 75 100 110 99 Slowest Speed 170 | 76 76 76 80 80 80 80 120 160 160 165 165 165 72 146 146 146 146 146 146 146 146 146 146 100 100 100 56 56 56 170 100 160 160 Overloaded Moves . | . . . . . . . . . . . . . . . . . . . . . . . . . . . . . . . . . . Propulsion Burnouts . | . . . . . . . . . . . . . . . . . . . . . . . . . . . . . . . . . . Robots Hopped . | . . . . . . . . . . . . . . . . . . . . . . . . . . . . . . . . . . Cave-ins Triggered . | . . . . . . . . . . . . . . . . . . . . . . . . . . . . . . . . . . Exploration Rate (%) 47 | 26 66 58 53 31 14 68 4 64 33 60 47 79 84 19 80 10 63 80 82 67 10 56 59 61 13 15 67 5 41 67 66 7 46 Regions Visited 33 Branch Regions 20 Pre-discovered Areas 34 | . 1 . 1 . . 1 . . . . . . . . . . . . 30 . . . . . . . . . 1 . . . . Known Exits Taken 6 | . . . . . 1 . . . . . . . . . . 1 . . . . 1 . . . 1 . . 1 . . . 1 . Unknown Exits Taken 21 | 1 1 1 1 1 . 1 . . 1 1 1 1 1 . . . 1 1 1 1 . 1 1 1 . . . . 1 1 1 . . Scrap Searched 26 | . . 1 . 1 . . . . . 1 9 2 1 . . . 2 3 . 3 . . . . . . . . 2 . 1 . . Spaces Dug 263 | . 12 48 . . . . . . 68 15 . . 42 . . . . . . 23 50 . . . 3 . . . . 1 . 1 . Terrain Destroyed 2202 | 4 89 57 . . . 4 . . 68 15 . . 458 158 324 22 . 100 25 115 273 197 213 1 8 . . 19 . 2 47 1 2 Melee 83 | . . . . . . . . . 68 15 . . . . . . . . . . . . . . . . . . . . . . . Projectile 61 | . . . . . . . . . . . . . . . . . . . . . . . . 1 8 . . . . 2 47 1 2 AOE 2058 | 4 89 57 . . . 4 . . . . . . 458 158 324 22 . 100 25 115 273 197 213 . . . . 19 . . . . . Terrain Rammed . | . . . . . . . . . . . . . . . . . . . . . . . . . . . . . . . . . . Walls Destroyed . | . . . . . . . . . . . . . . . . . . . . . . . . . . . . . . . . . . Machines Disabled . | . . . . . . . . . . . . . . . . . . . . . . . . . . . . . . . . . . Actions | -11 -10 -10 -10 -9 -8 -8 -7 -7 -7 -7 -7 -7 -6 -6 -6 -6 -6 -6 -6 -5 -5 -5 -5 -5 -5 -4 -4 -4 -4 -4 -3 -3 -3 --------- Run | Scr Mat Min Exi Min Mat Sto Fac Was Fac Low Low Zio Pro Fac Was Fac Low Low Dat Pro Fac Ext Cet Arc Hub Fac Was Fac Upp War Pro Res Arm Total 15753 | 2122 413 337 180 183 179 544 216 84 1448 475 329 1356 1025 405 338 244 344 506 144 438 208 424 141 54 78 830 64 182 220 886 741 296 319 Wait 2948 | 1965 52 40 . 7 5 53 7 3 39 1 . 30 107 31 98 28 3 4 . 4 1 8 3 3 . 72 . 17 4 125 234 . 4 Move 12104 | 156 346 292 180 176 174 491 186 81 1259 429 302 1323 899 347 225 215 341 500 142 431 184 363 132 45 68 725 61 148 199 702 459 248 275 Hop . | . . . . . . . . . . . . . . . . . . . . . . . . . . . . . . . . . . Pick Up 5 | . . . . . . . 1 . 1 . . . . 1 . . . . . . . . . . . . . . . 1 1 . . Fast Attach . | . . . . . . . . . . . . . . . . . . . . . . . . . . . . . . . . . . Attach . | . . . . . . . . . . . . . . . . . . . . . . . . . . . . . . . . . . Detach . | . . . . . . . . . . . . . . . . . . . . . . . . . . . . . . . . . . Swap . | . . . . . . . . . . . . . . . . . . . . . . . . . . . . . . . . . . Drop 2 | . . . . . . . . . 1 . . . . . . . . . . . . . . 1 . . . . . . . . . Fire 423 | 1 15 5 . . . . 22 . . 26 27 3 19 13 15 1 . 2 1 3 11 9 6 5 10 33 3 17 17 38 36 48 37 Melee 167 | . . . . . . . . . 148 19 . . . . . . . . . . . . . . . . . . . . . . . Ram 1 | . . . . . . . . . . . . . . . . . . . 1 . . . . . . . . . . . . . . Kick . | . . . . . . . . . . . . . . . . . . . . . . . . . . . . . . . . . . Crush 2 | . . . . . . . . . . . . . . . . . . . . . . . . . . . . . . 2 . . . Escape Stasis 25 | . . . . . . . . . . . . . . 13 . . . . . . 12 . . . . . . . . . . . . Rewire 76 | . . . . . . . . . . . . . . . . . . . . . . 44 . . . . . . . 18 11 . 3 Trap . | . . . . . . . . . . . . . . . . . . . . . . . . . . . . . . . . . . Miscellaneous . | . . . . . . . . . . . . . . . . . . . . . . . . . . . . . . . . . . Route ------- -11/Scrapyard -10/Materials (discovered 3 exits: [*Mat] / *Min x2) -10/Mines (discovered 2 exits: [*Mat] / *Exi) -10/Exiles -9/Mines -8/Materials (discovered 2 exits: *Sto x2) -8/Storage -7/Factory -7/Waste -7/Factory -7/Lower Caves -7/Lower Caves -7/Zion -6/Proximity Caves -6/Factory -6/Waste -6/Factory (discovered 3 exits: [*Fac] / *Low x2) -6/Lower Caves -6/Lower Caves (discovered 2 exits: [*Fac] / *Dat) -6/Data Miner -5/Proximity Caves -5/Factory (discovered 3 exits: Fac / Upp / *Ext) -5/Extension (discovered 2 exits: *Fac / *Cet) -5/Cetus (discovered 2 exits: *Fac / [*Arc]) -5/Archives -5/Hub_04(d) (discovered 4 exits: *Fac x4) -4/Factory (discovered 2 exits: Upp x2) -4/Waste -4/Factory (discovered 2 exits: *Upp x2) -4/Upper Caves -4/Warlord -3/Proximity Caves -3/Research -3/Armory History --------- Turn | Location | Event 4 | -11/Scrapyard | Discovered new exit (range 14) 1986 | -11/Scrapyard | Assembled infested the area 2053 | -11/Scrapyard | Entered Materials 2235 | -10/Materials | Discovered new exit (range 16) 2355 | -10/Materials | Discovered new exit (range 9) 2381 | -10/Materials | Discovered new exit (range 15) 2398 | -10/Materials | Entered Mines 2485 | -10/Mines | Met a Derelict shopkeep closing up shop 2530 | -10/Mines | Discovered new exit (range 16) 2624 | -10/Mines | Deemed a non-threat by the Exiles lab entrance 2624 | -10/Mines | Discovered new exit (range 5) 2669 | -10/Mines | Entered Exiles 2669 | -10/Exiles | Accompanied by 2 allies 2681 | -10/Exiles | Met 8R-AWN 2690 | -10/Exiles | Met EX-HEX 2699 | -10/Exiles | Led the pair of lost Derelicts to a safe place 2709 | -10/Exiles | Met EX-DEC 2718 | -10/Exiles | Learned location of Zion (-7) 2728 | -10/Exiles | Took control of EX-DEC (ally) 2771 | -10/Exiles | Discovered new exit (range 10) 2779 | -10/Exiles | Left Exiles lab with Deploy-a-Sentry 2779 | -10/Exiles | Entered Mines 2796 | -9/Mines | Found a damaged Exp. Sensor Array with a note attached 2798 | -9/Mines | Discovered new exit (range 12) 2850 | -9/Mines | Assembled infested the area 2855 | -9/Mines | Assisted by a Guerilla fighting off Assembled 2927 | -9/Mines | Entered Materials 2932 | -8/Materials | Identified exit to Storage 3072 | -8/Materials | Entered Storage 3098 | -8/Storage | Met a pair of Derelict thieves 3181 | -8/Storage | Garrison activated, responded to threat 3276 | -8/Storage | Destroyed 16 combat bots 3482 | -8/Storage | Discovered new exit (range 16) 3518 | -8/Storage | Entered Factory 3533 | -7/Factory | Discovered new exit (range 7) 3638 | -7/Factory | Found Deploy-a-Sentry 3761 | -7/Factory | Sucked down chute 3761 | -7/Factory | Entered Waste 3770 | -7/Waste | Spotted C-40 Crusher 3775 | -7/Waste | Spotted C-40 Crusher 3786 | -7/Waste | Spotted C-40 Crusher 3786 | -7/Waste | Spotted C-40 Crusher 3789 | -7/Waste | Spotted C-40 Crusher 3791 | -7/Waste | Spotted C-40 Crusher 3802 | -7/Waste | Discovered new exit (range 15) 3808 | -7/Waste | Took control of C-40 Crusher 3827 | -7/Waste | Entered Factory 6243 | -7/Factory | Discovered new exit (range 10) 6326 | -7/Factory | Entered Lower Caves 6543 | -7/Lower Caves | Spotted C-40 Crusher 6553 | -7/Lower Caves | Core integrity fell below 50% 6589 | -7/Lower Caves | Destroyed C-40 Crusher 6670 | -7/Lower Caves | Discovered new exit (range 10) 6681 | -7/Lower Caves | Encountered a Warlord checkpoint 6721 | -7/Lower Caves | Entered another Lower Caves area 7065 | -7/Lower Caves | Encountered a Warlord checkpoint 7267 | -7/Lower Caves | Discovered new exit (range 4) 7293 | -7/Lower Caves | Entered Zion 7326 | -7/Zion | Given A8's code to call for help 7388 | -7/Zion | Discovered new exit (range 9) 7394 | -7/Zion | Received a hallucinogenic algorithm 7590 | -7/Zion | Learned Factory emergency access door positions 8045 | -7/Zion | Attacked by Zionites 8100 | -7/Zion | 99-TNT came to Zion's defense 8103 | -7/Zion | Core integrity fell below 20% 8104 | -7/Zion | Took control of 99-TNT 8108 | -7/Zion | Entered Proximity Caves 8131 | -6/Proximity Caves | Lost 3 parts (1p1n1w) 8135 | -6/Proximity Caves | Learned Factory interactive machine intel 8181 | -6/Proximity Caves | Spotted B-75 Beast 8625 | -6/Proximity Caves | Destroyed B-75 Beast 8851 | -6/Proximity Caves | Learned Factory terminal intel 8878 | -6/Proximity Caves | Discovered new exit (range 11) 8901 | -6/Proximity Caves | Entered Factory 8902 | -6/Factory | Identified exit to Lower Caves 8904 | -6/Factory | Loaded intel: 49 interactive machine locations 8905 | -6/Factory | Loaded intel: 24 terminal locations 9251 | -6/Factory | First assault squad dispatched 9324 | -6/Factory | Sucked down chute 9324 | -6/Factory | Entered Waste 9338 | -6/Waste | Spotted C-40 Crusher 9341 | -6/Waste | Destroyed C-40 Crusher 9347 | -6/Waste | Spotted C-40 Crusher 9354 | -6/Waste | Spotted C-40 Crusher 9367 | -6/Waste | Destroyed C-40 Crusher 9367 | -6/Waste | Spotted C-40 Crusher 9372 | -6/Waste | Destroyed C-40 Crusher 9377 | -6/Waste | Destroyed C-40 Crusher 9403 | -6/Waste | Spotted C-40 Crusher 9456 | -6/Waste | Destroyed C-40 Crusher 9510 | -6/Waste | Spotted C-40 Crusher 9578 | -6/Waste | Destroyed C-40 Crusher 9674 | -6/Waste | Warlord forces began an assault 9701 | -6/Waste | Discovered new exit (range 20) 9781 | -6/Waste | Entered Factory 9781 | -6/Factory | Accompanied by 19 allies 10049 | -6/Factory | Discovered new exit (range 19) 10125 | -6/Factory | Entered Lower Caves 10125 | -6/Lower Caves | Accompanied by 15 allies 10403 | -6/Lower Caves | Encountered a Warlord checkpoint 10572 | -6/Lower Caves | Learned Factory emergency access door positions 10585 | -6/Lower Caves | Discovered new exit (range 13) 10626 | -6/Lower Caves | Entered another Lower Caves area 10626 | -6/Lower Caves | Accompanied by 8 allies 10673 | -6/Lower Caves | Discovered new exit (range 16) 11300 | -6/Lower Caves | Learned 4 Factory zone layouts 11316 | -6/Lower Caves | Discovered new exit (range 19) 11334 | -6/Lower Caves | Encountered a Warlord checkpoint 11364 | -6/Lower Caves | Entered Data Miner 11364 | -6/Data Miner | Accompanied by 6 allies 11364 | -6/Data Miner | Discovered new exit (range 6) 11386 | -6/Data Miner | Met Data Miner 11432 | -6/Data Miner | Learned location of Section 7 (-3) 11432 | -6/Data Miner | Acquired the access code to Warlord's prototype stash 11446 | -6/Data Miner | Received God Mode back door access code from Data Miner 11529 | -6/Data Miner | Interfaced with the Data Conduit 11575 | -6/Data Miner | Entered Proximity Caves 11575 | -5/Proximity Caves | Accompanied by 6 allies 11668 | -5/Proximity Caves | Attracted the attention of an 0b10 base 11962 | -5/Proximity Caves | Learned 12 Factory zone layouts 11971 | -5/Proximity Caves | Learned Factory security intel 12181 | -5/Proximity Caves | Discovered new exit (range 5) 12215 | -5/Proximity Caves | Entered Factory 12215 | -5/Factory | Accompanied by 5 allies 12216 | -5/Factory | Identified exit to Extension 12217 | -5/Factory | Identified exit to Upper Caves 12217 | -5/Factory | Identified exit to Factory 12220 | -5/Factory | Loaded intel: 304 machine locations 12515 | -5/Factory | First assault squad dispatched 12519 | -5/Factory | Entered Extension 12520 | -5/Extension | Loaded intel: 23 machine locations 12583 | -5/Extension | Rescued a captive Derelict 12597 | -5/Extension | Rescued a captive Derelict 12608 | -5/Extension | Rescued A7 12920 | -5/Extension | Spotted B-75 Beast 12927 | -5/Extension | Destroyed B-75 Beast 12934 | -5/Extension | Spotted B-75 Beast 12943 | -5/Extension | Destroyed B-75 Beast 12944 | -5/Extension | Disrupted transfer network 13086 | -5/Extension | Discovered exit to Factory (range 20) 13086 | -5/Extension | Discovered new exit (range 20) 13119 | -5/Extension | First assault squad dispatched 13119 | -5/Extension | Entered Cetus 13119 | -5/Cetus | Accompanied by 3 allies (A7) 13120 | -5/Cetus | Loaded intel: 24 machine locations 13124 | -5/Cetus | Acquired a Cetus Manufacturing Module code from A7 13138 | -5/Cetus | Spotted Cetus Guard 13138 | -5/Cetus | Spotted Cetus Guard 13138 | -5/Cetus | Spotted Cetus Guard 13138 | -5/Cetus | Spotted Cetus Guard 13142 | -5/Cetus | Destroyed Cetus Guard 13143 | -5/Cetus | Allies destroyed Cetus Guard 13144 | -5/Cetus | Destroyed Cetus Guard 13149 | -5/Cetus | Allies destroyed Cetus Guard 13204 | -5/Cetus | Started Cetus Manufacturing Module 13216 | -5/Cetus | Discovered new exit (range 20) 13229 | -5/Cetus | Manufactured an Enhanced Grunt 13254 | -5/Cetus | Manufactured an Enhanced Grunt 13255 | -5/Cetus | Spotted Cetus Guard 13255 | -5/Cetus | Spotted Cetus Guard 13256 | -5/Cetus | Spotted Cetus Guard 13256 | -5/Cetus | Spotted Cetus Guard 13259 | -5/Cetus | Destroyed Cetus Guard 13259 | -5/Cetus | Destroyed Cetus Guard 13264 | -5/Cetus | Discovered exit to Factory (range 20) 13265 | -5/Cetus | Allies destroyed Cetus Guard 13272 | -5/Cetus | Allies destroyed Cetus Guard 13279 | -5/Cetus | Manufactured an Enhanced Grunt 13279 | -5/Cetus | Met Revision 17 13304 | -5/Cetus | Manufactured an Enhanced Grunt 13327 | -5/Cetus | Entered Archives 13327 | -5/Archives | Accompanied by 5 allies (A7) 13328 | -5/Archives | Loaded intel: 8 machine locations 13329 | -5/Archives | Took control of A7 (ally) 13330 | -5/Archives | Extracted ID and sensor layout for unrecognized location from A7's data core 13335 | -5/Archives | Met Zhirov 13340 | -5/Archives | Took control of Svarog (ally) 13341 | -5/Archives | Reinforcements dispatched to Archives 13343 | -5/Archives | Discovered new exit (range 16) 13377 | -5/Archives | Entered Hub_04(d) 13377 | -5/Hub_04(d) | Accompanied by 1 ally (A7) 13378 | -5/Hub_04(d) | Loaded intel: 60 machine locations 13473 | -5/Hub_04(d) | Entered Factory 13473 | -4/Factory | Accompanied by 1 ally (A7) 13474 | -4/Factory | Loaded intel: 226 machine locations 13554 | -4/Factory | Repaired Nova Cannon 13585 | -4/Factory | Took control of A7 (ally) 13636 | -4/Factory | Destroyed Svarog 13652 | -4/Factory | Repaired Nova Cannon? 13723 | -4/Factory | First assault squad dispatched 13801 | -4/Factory | Identified exit to Upper Caves 14058 | -4/Factory | Sucked down chute 14058 | -4/Factory | Entered Waste 14061 | -4/Waste | Spotted C-40 Crusher 14071 | -4/Waste | Spotted C-40 Crusher 14073 | -4/Waste | EMP discharged 14077 | -4/Waste | Spotted C-40 Crusher 14077 | -4/Waste | Spotted C-40 Crusher 14079 | -4/Waste | Spotted C-40 Crusher 14083 | -4/Waste | Discovered new exit (range 16) 14084 | -4/Waste | Spotted C-40 Crusher 14102 | -4/Waste | Entered Factory 14103 | -4/Factory | Loaded intel: 309 machine locations 14245 | -4/Factory | Entered Upper Caves 14336 | -4/Upper Caves | A Derelict revealed a hidden shortcut to "reach the base" 14357 | -4/Upper Caves | Attracted the attention of an 0b10 checkpoint 14402 | -4/Upper Caves | Destroyed 8 combat bots 14412 | -4/Upper Caves | Entered Warlord 14436 | -4/Warlord | Discovered new exit (range 14) 14460 | -4/Warlord | System corruption cleaned by Quarantine Array 14680 | -4/Warlord | Met Warlord 14685 | -4/Warlord | Opened Warlord's prototype stash 14700 | -4/Warlord | Warlord's base attacked by MAIN.C 14722 | -4/Warlord | Found Signal Generator 15027 | -4/Warlord | Spotted Executioner 15050 | -4/Warlord | Warlord forces counterattacked 15054 | -4/Warlord | P-80 Master assimilated allied Y2-F21(g) 15060 | -4/Warlord | Spotted Striker 15074 | -4/Warlord | Destroyed Striker 15114 | -4/Warlord | Spotted Executioner 15143 | -4/Warlord | Took control of Executioner 15166 | -4/Warlord | Entered Proximity Caves 15238 | -3/Proximity Caves | Attracted the attention of an 0b10 outpost 15592 | -3/Proximity Caves | Found Alien Artifact 15678 | -3/Proximity Caves | Lost 3 parts (1p1u1w) 15727 | -3/Proximity Caves | Discovered new exit (range 7) 15811 | -3/Proximity Caves | Received a Behemoth hack from an annoying Tinkerer 15970 | -3/Proximity Caves | Entered Research 15971 | -3/Research | Identified exit to Armory 15972 | -3/Research | Loaded intel: 123 machine locations 16066 | -3/Research | Spotted B-86 Titan 16070 | -3/Research | Spotted Executioner 16151 | -3/Research | Lost 3 parts (1n1u1w) 16170 | -3/Research | Revision forces began assault on 0b10 16179 | -3/Research | Core integrity fell below 50% 16193 | -3/Research | Lost 3 parts (1n1u1w) 16207 | -3/Research | Met up with Revision 17++ 16362 | -3/Research | Entered Armory 16363 | -3/Armory | Loaded intel: 65 machine locations 16618 | -3/Armory | Lost 3 parts (1n1u1w) 16695 | -3/Armory | Spotted B-86 Titan 16726 | -3/Armory | Core integrity fell below 20% 16752 | -3/Armory | Destroyed by S-43 Plague with Heavy Machine Gun Last Messages --------------- 16730_ Lgt. Antimatter Reactor blown off. 16730_ Xenon Bombardment Thruster blown off. 16730_ Hvy. Machine Gun blown off. 16730_ Xenon Bombardment Thruster blown off. 16730_ E-15 Imp destroyed. 16745_ C-30 ARC bursts open, deploying its payload. 16745_ H-77 Assassin unfolds itself. 16745_ Slug penetrates Wall. 16746_ System corrupted: Energy discharge (-11). 16747_ Slug penetrates Wall. 16747_ Slug penetrates W-44 Eye. 16748_ W-44 Eye knocked back. 16749_ Slug penetrates Compression Vault. 16749_ Compression Vault explodes. 16751_ Penetrated by Slug. 16751_ Xenon Bombardment Thruster destroyed. 16751_ Lost control of S-43 Plague. 16752_ Slug penetrates Wall. 16752_ Penetrated by Slug. 16752_ Component Storage disabled. Map ----- +----------------------------------------------------+ | ???"""""""???????????????????????????????????????? | | ?????????????????????????????????????????????????? | | ?????????????????????????????????????????????????? | | ?????????????????????????????????????????????????? | | ?????????????????????????????????????????????????? | | ???????????????????""""??????????????????????????? | | ??????????????????????T??????????????????????????? | | ??T??????????????????????????????????????????????? | | ?????????????????????????????????????????????????? | | ?????????"""?????????????????????????????????????? | | ?????????"""?????????????????????????????????????? | | ??????????R"?????????????????????????????????????? | | ?????????"""?????????????????????????????????????? | | ?????????""????????????"?????????????????????????? | | ???????????????????????"?????????????????????????? | | ???????????????????????"?????????????????????????? | | ""??????????????"""???T??????????????????????????? | | ""??????????????"""??????????????????????????????? | | ""??????????????"""??????????????????????????????? | | ???????????? ?"""??????????????????????????????? | | ???????????? "" ?????????????????????????????? | | ???????????# ############################# | | ???????????# """T""" | | ???????????# """ """ | | ???????????# | | ???????????# @ | | ???????????# ! ####### !!#???? | | ???????????????????????????# ! #???? | | ???????????????????????????# % ##### | | ???????????????????????????# | | ???????????????????????"""?# ##### ## | | ???????????????????????"""?# #???# #? | | ???????????????????????"""?# #???# #? | | ???????????????????????"""?## ######+###???# #? | | ???????????????????????"""??# #????????????#+##/## | | ????????????????????????????# +????????????# | | ????????????????????????????# #????????????# | | ??????????""????????????????# #????????????# // | | ??????????"T????????????????# +????????????#= // | | ????????????????????????????? ?????????????# // | | ????????????????????????????? ??????"??"???# | | ????????????????????????????? ??????"??"???# | | ????????????????????????????????????"??"???# ] | | ????????????????????????????????????"??"???# ! | | ???????????????????????????????????????????####### | | ?????????????????????????????????????????????????? | | ?????????????????????????????????????????????????? | | | | | | | +----------------------------------------------------+ Best States ------------- Heat Dissipation 112 Energy Generation 62 Energy Capacity 885 Matter Stores 700 Matter Capacity 700 Sight Range 23 Terrain Scan Density 135 Additional Mass Support 16 EM Shielding 2 Armor Coverage 3200 Resistance: KI 40 Resistance: TH 25 Resistance: EX 100 Resistance: EM 90 Resistance: I 25 Resistance: S 50 Resistance: P 50 Core Shielding 30 Propulsion Shielding 66 Weapon Shielding 90 Weapon Cycling 15 Phase Shifting 10 Evasion (%) 65 Targeting Accuracy 12 Launcher Accuracy 40 Target Analysis 6 Core Analysis 12 Armor Integrity Analysis 40 Recoil Reduction 4 Particle Charging 25 Kinecelleration 50 Salvage Targeting 1 Offensive Hacking 70 Defensive Hacking 56 Item Schematics ----------------- None Robot Schematics ------------------ G-67 Veteran | -6/Data Miner | Free R-10 Processor | -6/Data Miner | Free D-63 Destroyer | -6/Data Miner | Free A-15 Conveyor | -6/Data Miner | Free L-41 Fighter | -6/Data Miner | Free Fabricated ------------ Nothing Alien Tech Used ----------------- None Achievements -------------- None Challenges ------------ None Polymind | -11 -10 -10 -10 -9 -8 -8 -7 -7 -7 -7 -7 -7 -6 -6 -6 -6 -6 -6 -6 -5 -5 -5 -5 -5 -5 -4 -4 -4 -4 -4 -3 -3 -3 ---------- Run | Scr Mat Min Exi Min Mat Sto Fac Was Fac Low Low Zio Pro Fac Was Fac Low Low Dat Pro Fac Ext Cet Arc Hub Fac Was Fac Upp War Pro Res Arm Hosts 20 | 1 . . 1 . . . 1 1 . 2 1 2 . . . . . . . . . . . 2 . 1 . . . 2 . 3 3 Combat Hostiles 11 | 1 . . . . . . 1 1 . 1 . 1 . . . . . . . . . . . . . . . . . 1 . 2 3 Allies 9 | . . . 1 . . . . . . 1 1 1 . . . . . . . . . . . 2 . 1 . . . 1 . 1 . Unique Host Classes 13 | 1 . . 1 . . . 1 1 . 2 . 1 . . . . . . . . . . . 2 . . . . . 2 . 1 1 Average Host Suspicion 77 | 54 86 99 . 50 87 89 91 2 99 74 47 . 99 86 23 68 56 81 7 71 74 78 90 2 86 85 9 67 73 57 96 86 94 Unsuspicious Activity 1279 | 20 . . 16 130 . . . 106 . 100 200 135 . . 130 . . 10 10 . . . . 225 . 105 30 . . 14 . . 48 Returns to Shadow 2 | . . . . . . . . . . 1 1 . . . . . . . . . . . . . . . . . . . . . . Fuzzy Dispatches . | . . . . . . . . . . . . . . . . . . . . . . . . . . . . . . . . . . Protomatter Created 5992 | 65 81 38 . 54 35 297 26 . 206 173 12 30 32 156 487 152 104 164 . 145 370 306 . 126 121 268 . 86 139 1081 360 609 269 Used 1619 | 40 . . 33 . . . 30 213 . 34 20 211 . . . . . . . . . . . 350 . 150 . . . 156 . 187 195 Decayed 2202 | . 12 . . . . 21 26 . 34 7 . 30 . 4 84 38 60 84 . 114 143 166 . 41 . 95 . . . 638 269 324 12 Highest Spend 213 | 40 . . 33 . . . 30 213 . 20 20 208 . . . . . . . . . . . 200 . 150 . . . 128 . 97 97 Top 5 Hosts by Kills: 99-TNT (-7/Zion: 61) EX-DEC (-10/Exiles: 38) C-40 Crusher (-7/Waste: 30) A7 (-4/Factory: 21) D-53 Grenadier (-11/Scrapyard: 15) Game ------ Seed HypercooledArmorLance Manual? 0 Play Time 02:26:37 Cumulative 689.3 hours Start 2022.12.31 @ 20:20:03 End 2022.12.31 @ 22:48:19 Sessions 1 Manual Loads 0 Difficulty Rogue Special Mode Winter2022/Polymind Game No. 450 Rogue 443 Adventurer 0 Explorer 7 Win Type - Total 51 Types 19/5/18/2/0/1/4/1/1 Lore% 88 Gallery% 96 Achievement% 82 Wizard Run 0 Options --------- ASCII 0 Keyboard 0 Movement Numpad Keybinds 0 Fullscreen 1 Font 18/X11Bold Map View 76x50 Tactical HUD 1 Map Filters NONE Filters NONE Steam 1 RUN: 1734dbb0-74b4-4502-a3ac-d8780d1f8765